bitfinex-derivatives/quotes_SOLF0:USTF0_20250507
["timestamp","ask_amount","ask_price","bid_price","bid_amount"]
[1746602702772,11.32699993,146.51,146.5,28.56]
[1746602703590,4.50059993,146.51,146.5,35.3869]
[1746602704972,11.32699993,146.51,146.5,28.56]
[1746602705573,4.50059993,146.51,146.5,28.56]
[1746602706974,11.32699993,146.51,146.5,28.56]
[1746602707971,15.49316362,146.51,146.5,28.56]
[1746602710570,15.50258161,146.51,146.5,28.56]
[1746602712873,15.50958714,146.51,146.5,28.56]
[1746602714275,11.32699993,146.51,146.5,28.56]
[1746602714471,15.51193771,146.51,146.5,28.56]
[1746602716076,6.8278,146.49,146.47,28.56]
[1746602716389,4.50059993,146.48,146.47,28.56]
[1746602717278,15.51678245,146.48,146.47,28.56]
[1746602718077,15.51806504,146.48,146.47,28.56]
[1746602720684,6.8291,146.46,146.44,28.56]
[1746602720883,4.50059993,146.45,146.44,28.56]
[1746602721881,4.50059993,146.45,146.44,35.3897]
[1746602722682,8.69292591,146.45,146.44,28.56]
[1746602723084,15.52212591,146.45,146.44,28.56]
[1746602723289,15.52222216,146.45,146.44,28.56]
[1746602723480,11.32979993,146.45,146.44,28.56]
[1746602723680,11.32979993,146.45,146.43,35.39]
[1746602723979,4.50059993,146.45,146.43,35.39]
[1746602724785,4.50059993,146.44,146.43,35.39]
[1746602726185,4.50059993,146.44,146.43,6.83]
[1746602726385,4.50059993,146.44,146.43,35.39]
[1746602726785,4.51571805,146.44,146.43,35.39]
[1746602731083,4.1654,146.5,146.43,35.39]
[1746602731288,6.8282,146.48,146.45,6.829]
[1746602731490,4.18225925,146.47,146.45,6.829]
[1746602731692,4.5119611,146.46,146.45,6.829]
[1746602732688,4.5119611,146.46,146.43,28.56]
[1746602732887,4.5119611,146.45,146.43,28.56]
[1746602733087,4.5119611,146.45,146.43,35.3898]
[1746602733592,4.5119611,146.44,146.43,35.3898]
[1746602735189,6.8289,146.46,146.43,35.3898]
[1746602735689,4.51178682,146.45,146.43,35.3898]
[1746602735988,6.8289,146.46,146.43,35.3898]
[1746602737296,6.8289,146.46,146.44,6.8296]
[1746602737486,4.511758,146.45,146.44,6.8296]
[1746602738485,4.511758,146.45,146.43,35.39]
[1746602738686,4.511758,146.44,146.43,35.39]
[1746602739993,6.8293,146.45,146.43,35.39]
[1746602740291,6.829,146.46,146.43,35.39]
[1746602740791,4.51214958,146.45,146.43,35.39]
[1746602741192,4.51214958,146.44,146.43,35.39]
[1746602745898,4.51214958,146.44,146.43,28.56]
[1746602746595,4.51214958,146.44,146.43,35.3902]
[1746602747698,4.51214958,146.44,146.43,28.56]
[1746602749399,4.52056831,146.44,146.43,28.56]
[1746602751099,4.52056831,146.44,146.43,35.3902]
[1746602751493,4.52056831,146.44,146.43,28.56]
[1746602751699,15.54312513,146.44,146.43,28.56]
[1746602753103,15.54429064,146.44,146.43,28.56]
[1746602753908,15.54474207,146.44,146.43,28.56]
[1746602756904,15.54668156,146.44,146.43,28.56]
[1746602760603,8.71748879,146.44,146.43,35.3902]
[1746602763805,8.71603217,146.44,146.43,35.3902]
[1746602765601,8.71603217,146.44,146.43,28.56]
[1746602766121,15.54573217,146.44,146.43,28.56]
[1746602767406,15.53546411,146.44,146.43,28.56]
[1746602777819,8.70576411,146.44,146.43,35.3902]
[1746602778321,8.6971143,146.44,146.43,35.3902]
[1746602779217,8.6971143,146.44,146.43,28.56]
[1746602780320,8.71176786,146.44,146.43,35.3902]
[1746602782021,8.71190957,146.44,146.43,35.3902]
[1746602783720,4.52056831,146.44,146.43,35.3902]
[1746602784024,8.7113312,146.44,146.43,35.3902]
[1746602784928,8.71123878,146.44,146.43,35.3902]
[1746602785426,8.71130286,146.44,146.43,35.3902]
[1746602785622,8.71133801,146.44,146.43,35.3902]
[1746602785822,4.52056831,146.44,146.43,35.3902]
[1746602786025,8.71133801,146.44,146.43,35.3902]
[1746602786625,8.71133801,146.44,146.43,28.56]
[1746602787025,8.71141635,146.44,146.43,28.56]
[1746602788026,8.71141635,146.44,146.43,35.3902]
[1746602788727,8.71017976,146.44,146.43,35.3902]
[1746602790526,8.71035036,146.44,146.43,35.3902]
[1746602797738,8.71327325,146.44,146.43,35.3902]
[1746602801340,8.70960684,146.44,146.43,35.3902]
[1746602803643,8.71004773,146.44,146.43,35.3902]
[1746602803843,8.70999156,146.44,146.43,35.3902]
[1746602804942,8.70819768,146.44,146.43,35.3902]
[1746602805842,8.70624067,146.44,146.43,35.3902]
[1746602809345,8.7054418,146.44,146.43,35.3902]
[1746602809542,4.52056831,146.44,146.43,35.3902]
[1746602811241,8.70343771,146.44,146.43,35.3902]
[1746602812245,8.70365298,146.44,146.43,35.3902]
[1746602812944,4.52056831,146.44,146.43,35.3902]
[1746602813251,8.70384928,146.44,146.43,35.3902]
[1746602813842,4.52056831,146.44,146.43,35.3902]
[1746602814246,4.1654,146.5,146.43,28.56]
[1746602814447,4.18395013,146.49,146.43,28.56]
[1746602814653,4.18395013,146.48,146.43,28.56]
[1746602814848,4.18395013,146.47,146.46,6.8284]
[1746602815148,4.18395013,146.47,146.46,35.3884]
[1746602815848,4.18353771,146.47,146.46,35.3884]
[1746602817645,4.18463631,146.47,146.46,35.3884]
[1746602822750,32.7492,146.54,146.48,6.8274]
[1746602822944,6.8262,146.52,146.49,28.54]
[1746602823145,4.18085268,146.51,146.49,28.54]
[1746602823348,4.18085268,146.5,146.49,35.3673]
[1746602825151,4.18085268,146.5,146.49,28.54]
[1746602827052,8.82891181,146.5,146.49,28.54]
[1746602827252,8.82891181,146.5,146.49,35.3674]
[1746602827757,8.82891181,146.5,146.49,28.54]
[1746602827955,8.8203787,146.5,146.49,28.54]
[1746602828953,8.8203787,146.5,146.49,35.3674]
[1746602829454,8.8203787,146.5,146.49,28.54]
[1746602830957,8.8203787,146.5,146.49,35.3674]
[1746602834456,4.64805913,146.5,146.49,35.3674]
[1746602835958,6.8252,146.54,146.51,6.8261]
[1746602836151,4.17023624,146.53,146.51,6.8261]
[1746602836351,4.17023624,146.52,146.51,6.8264]
[1746602836550,2.0642,146.55,146.5,28.54]
[1746602836755,4.16901958,146.54,146.5,28.54]
[1746602836955,4.16901958,146.53,146.52,6.8255]
[1746602837160,2.0642,146.55,146.52,6.8255]
[1746602837359,2.0642,146.55,146.53,28.54]
[1746602838058,8.8889,146.55,146.53,28.54]
[1746602838655,4.17085312,146.54,146.53,28.54]
[1746602838849,10.99585312,146.54,146.53,28.54]
[1746602840563,10.99420903,146.54,146.53,28.54]
[1746602842369,10.99264556,146.54,146.53,28.54]
[1746602846072,6.825,146.54,146.53,28.54]
[1746602846268,10.99279271,146.54,146.53,28.54]
[1746602846893,6.825,146.54,146.53,28.54]
[1746602847076,10.99302273,146.54,146.53,28.54]
[1746602847277,10.99334724,146.54,146.53,28.54]
[1746602848371,15.56774422,146.54,146.53,28.54]
[1746602851173,15.56821317,146.54,146.53,28.54]
[1746602854473,6.8264,146.51,146.5,57.06]
[1746602854671,10.99794041,146.51,146.5,28.52]
[1746602855072,15.57233739,146.51,146.5,28.52]
[1746602855874,15.57436517,146.51,146.5,28.52]
[1746602856378,15.57525667,146.51,146.5,28.52]
[1746602858981,8.74885667,146.51,146.5,28.52]
[1746602861484,8.74885667,146.51,146.5,35.3469]
[1746602872388,8.74885667,146.51,146.5,40.04335166]
[1746602873587,8.74885667,146.51,146.5,68.58335166]
[1746602876593,8.75476102,146.51,146.5,68.58335166]
[1746602876787,8.75476112,146.51,146.5,68.58335166]
[1746602878695,8.75635307,146.51,146.5,68.58335166]
[1746602881496,8.758144,146.51,146.5,68.58335166]
[1746602888904,8.80926398,146.51,146.5,68.58335166]
[1746602890009,8.80956625,146.51,146.5,68.58335166]
[1746602892202,8.80956625,146.51,146.5,61.75645166]
[1746602892400,8.80956625,146.51,146.5,33.21645166]
[1746602893404,8.80956625,146.51,146.5,40.04335166]
[1746602893901,8.80956625,146.51,146.5,33.21645166]
[1746602894703,8.80956625,146.51,146.5,40.04335166]
[1746602900611,8.80956625,146.51,146.5,35.3469]
[1746602900812,8.80956625,146.51,146.5,40.04335166]
[1746602906118,2.0293,146.56,146.53,6.8255]
[1746602906312,4.1559,146.57,146.53,11.52195166]
[1746602906515,4.1559,146.57,146.54,28.52]
[1746602906814,6.8244,146.56,146.54,28.52]
[1746602907013,4.1559,146.57,146.55,4.69645166]
[1746602907416,2.0324,146.59,146.55,4.69645166]
[1746602907615,2.0324,146.59,146.56,4.69645166]
[1746602907916,35.24885166,146.59,146.54,28.52]
[1746602908118,4.69645166,146.57,146.53,28.52]
[1746602908416,6.825,146.55,146.53,28.52]
[1746602908613,4.1993,146.56,146.53,28.52]
[1746602909218,6.825,146.54,146.53,28.52]
[1746602910512,6.8264,146.52,146.5,28.5]
[1746602912021,6.8264,146.52,146.5,35.3269]
[1746602912820,6.8264,146.52,146.5,28.5]
[1746602913521,6.8264,146.52,146.5,35.3269]
[1746602913722,6.8257,146.53,146.5,40.02335166]
[1746602915425,6.8253,146.54,146.5,40.02335166]
[1746602915622,33.21645166,146.55,146.5,40.02335166]
[1746602916018,6.8258,146.53,146.51,6.8264]
[1746602917023,6.8258,146.53,146.5,40.02315166]
[1746602917919,33.21645166,146.55,146.5,28.5]
[1746602918114,10.9258396,146.54,146.5,28.5]
[1746602918323,4.15946026,146.53,146.5,28.5]
[1746602918625,6.8264,146.51,146.5,28.5]
[1746602918820,42.00469126,146.51,146.46,589.74]
[1746602919022,4.15946026,146.5,146.47,28.5]
[1746602919325,6.8282,146.48,146.47,28.5]
[1746602919516,10.98766026,146.48,146.47,28.5]
[1746602919921,15.6164396,146.48,146.47,28.5]
[1746602920228,8.7882396,146.48,146.47,28.5]
[1746602920421,9.22071927,146.48,146.47,28.5]
[1746602921026,9.22071927,146.48,146.47,35.3283]
[1746602921429,9.22071927,146.48,146.47,40.02475166]
[1746602921828,9.22071927,146.48,146.47,68.54475166]
[1746602922023,30.6576,146.54,146.52,6.8259]
[1746602922231,4.69645166,146.57,146.52,28.5]
[1746602922530,4.69645166,146.57,146.52,33.19645166]
[1746602923027,6.8246,146.55,146.53,6.8253]
[1746602924029,6.8246,146.55,146.52,35.3258]
[1746602924228,6.8246,146.55,146.52,28.5]
[1746602924430,6.8243,146.56,146.52,28.5]
[1746602924630,6.8243,146.56,146.52,35.3257]
[1746602925233,6.8249,146.55,146.52,35.3257]
[1746602929039,6.8251,146.54,146.52,35.3257]
[1746602930537,6.8248,146.55,146.52,35.3257]
[1746602931239,6.8251,146.54,146.52,35.3257]
[1746602933239,6.8248,146.55,146.52,35.3257]
[1746602933539,28.52,146.58,146.52,35.3257]
[1746602933840,6.8245,146.56,146.53,6.8254]
[1746602934051,4.47691304,146.55,146.53,6.8254]
[1746602934239,4.47691304,146.54,146.53,6.8254]
[1746602934444,9.03478358,146.54,146.53,6.8254]
[1746602935343,9.03478358,146.54,146.52,35.3259]
[1746602935542,4.47691304,146.53,146.52,35.3259]
[1746602935843,9.03478358,146.53,146.52,28.5]
[1746602936041,9.03478358,146.53,146.49,28.5]
[1746602936343,6.827,146.5,146.49,28.5]
[1746602937338,15.8666092,146.5,146.49,28.5]
[1746602939143,9.0396092,146.5,146.49,28.5]
[1746602940044,15.8665092,146.5,146.49,28.5]
[1746602940251,9.0396092,146.5,146.49,28.5]
[1746602942146,15.8665092,146.5,146.49,28.5]
[1746602943243,11.38644559,146.5,146.49,28.5]
[1746602943442,37.56528647,146.5,146.46,28.5]
[1746602943650,4.48574088,146.49,146.45,28.5]
[1746602943948,9.04528647,146.48,146.45,28.5]
[1746602944149,6.8288,146.46,146.45,28.5]
[1746602944356,11.31454088,146.46,146.45,28.5]
[1746602944546,15.87408647,146.46,146.45,28.5]
[1746602945043,15.87283372,146.46,146.45,28.5]
[1746602948254,9.04403372,146.46,146.45,28.5]
[1746602949954,9.04403372,146.46,146.45,35.3292]
[1746602950447,4.55954559,146.46,146.45,35.3292]
[1746602950755,9.03599933,146.46,146.45,35.3292]
[1746602951157,4.55954559,146.46,146.45,35.3292]
[1746602952050,4.55954559,146.46,146.45,63.8492]
[1746602958953,6.8262,146.52,146.49,6.827]
[1746602959155,6.8262,146.52,146.49,35.347]
[1746602959958,4.47434662,146.51,146.49,35.347]
[1746602960255,4.47434662,146.5,146.49,35.347]
[1746602961559,4.45551151,146.5,146.49,35.347]
[1746602965859,4.45551151,146.5,146.49,63.867]
[1746602966957,6.8253,146.54,146.51,6.8261]
[1746602967153,4.45425554,146.53,146.51,6.8261]
[1746602967358,4.45425554,146.52,146.49,57.04]
[1746602967559,4.45425554,146.51,146.5,6.8267]
[1746602970562,6.8252,146.54,146.51,6.826]
[1746602970864,4.45358064,146.53,146.51,6.826]
[1746602971062,4.45358064,146.52,146.51,6.826]
[1746602971361,8.9371478,146.52,146.51,6.826]
[1746602972463,8.93689937,146.52,146.51,6.826]
[1746602973160,8.93689937,146.52,146.5,6.8267]
[1746602973365,4.45333221,146.51,146.5,6.8267]
[1746602973567,8.93689937,146.51,146.5,6.8267]
[1746602974263,8.93953836,146.51,146.5,6.8267]
[1746602976163,8.93792374,146.51,146.5,6.8267]
[1746602979164,4.48356716,146.51,146.5,6.8267]
[1746602980066,6.8248,146.55,146.52,6.8257]
[1746602980261,4.45367685,146.54,146.53,28.5]
[1746602980657,4.45367685,146.54,146.53,35.3255]
[1746602980961,8.9382862,146.54,146.53,35.3255]
[1746602985165,8.93371602,146.54,146.53,35.3255]
[1746602985566,4.48460935,146.54,146.53,35.3255]
[1746602985767,6.8238,146.57,146.54,6.8248]
[1746602986971,6.8241,146.56,146.54,6.8248]
[1746602988472,15.75073395,146.55,146.53,57.0]
[1746602988675,4.44770225,146.54,146.53,57.0]
[1746602988872,8.92613395,146.54,146.53,57.0]
[1746602989176,8.92613395,146.54,146.53,63.8255]
[1746602990173,8.92769149,146.54,146.53,63.8255]
[1746602993175,8.92769149,146.54,146.53,57.0]
[1746602993376,8.92895454,146.54,146.53,57.0]
[1746602993771,8.92895454,146.54,146.53,63.8255]
[1746602997481,8.93132276,146.54,146.53,63.8255]
[1746602998579,8.93241941,146.54,146.53,63.8255]
[1746602998783,8.93241941,146.54,146.53,57.0]
[1746602999398,8.93420683,146.54,146.53,57.0]
[1746603000674,8.93420683,146.54,146.53,63.8255]
[1746603001375,4.4784317,146.54,146.53,63.8255]
[1746603001579,8.94061469,146.54,146.53,63.8255]
[1746603004082,8.94280478,146.54,146.53,63.8255]
[1746603005980,8.94643497,146.54,146.53,63.8255]
[1746603007182,6.8229,146.59,146.56,6.8239]
[1746603007481,6.8229,146.59,146.57,28.48]
[1746603009283,6.8225,146.6,146.57,28.48]
[1746603010285,6.8225,146.6,146.58,6.8232]
[1746603010581,6.823,146.59,146.57,28.48]
[1746603011582,6.823,146.59,146.57,35.3034]
[1746603012783,6.8225,146.6,146.57,35.3034]
[1746603013482,6.8228,146.59,146.57,35.3034]
[1746603013684,6.8228,146.59,146.57,28.48]
[1746603014286,6.8228,146.59,146.57,35.3034]
[1746603014475,32.8195,146.62,146.57,35.3034]
[1746603015777,32.8195,146.62,146.57,28.48]
[1746603016380,32.8195,146.62,146.53,35.83517699]
[1746603016381,32.8195,146.62,146.54,28.48]
[1746603017683,4.69506229,146.59,146.54,28.48]
[1746603017982,6.8246,146.55,146.54,28.48]
[1746603019084,11.19525211,146.55,146.54,28.48]
[1746603019405,15.84871938,146.55,146.54,28.48]
[1746603022489,9.02411938,146.55,146.54,28.48]
[1746603023792,15.84871938,146.55,146.54,28.48]
[1746603024088,15.85034709,146.55,146.54,28.48]
[1746603028493,6.8261,146.52,146.49,589.7]
[1746603028700,4.37227982,146.51,146.5,28.48]
[1746603029194,15.85244709,146.51,146.5,28.48]
[1746603029398,15.86916751,146.51,146.5,28.48]
[1746603029599,6.8276,146.49,146.46,6.8285]
[1746603029802,4.38900024,146.48,146.47,28.48]
[1746603030402,9.04246751,146.48,146.47,28.48]
[1746603031001,9.04246751,146.48,146.47,35.3083]
[1746603031200,9.49055397,146.48,146.47,35.3083]
[1746603031499,28.5,146.54,146.47,35.3083]
[1746603032015,6.8272,146.5,146.47,35.3083]
[1746603033005,6.8275,146.49,146.47,35.3083]
[1746603033196,30.6118,146.56,146.47,28.48]
[1746603033402,59.1118,146.56,146.47,28.48]
[1746603033600,6.8263,146.52,146.47,28.48]
[1746603033801,6.8263,146.52,146.49,6.8271]
[1746603037899,59.1118,146.56,146.49,6.8271]
[1746603038100,6.8265,146.51,146.49,6.8271]
[1746603040006,6.8261,146.52,146.49,6.8271]
[1746603042005,6.8265,146.51,146.49,6.8271]
[1746603042205,28.56,146.55,146.48,6.8276]
[1746603042606,6.8268,146.51,146.48,6.8276]
[1746603043007,28.56,146.55,146.48,6.8276]
[1746603043205,2.1318,146.56,146.48,6.8276]
[1746603043407,9.26218845,146.55,146.48,6.8276]
[1746603043609,4.71424358,146.54,146.48,6.8276]
[1746603043807,9.26218845,146.53,146.48,6.8276]
[1746603044006,6.8265,146.51,146.48,6.8276]
[1746603044307,9.26218845,146.5,146.48,6.8276]
[1746603044506,4.71424358,146.49,146.48,6.8276]
[1746603044703,4.71424358,146.49,146.48,35.3276]
[1746603045309,9.26218845,146.49,146.48,35.3276]
[1746603045610,9.26218845,146.49,146.48,28.5]
[1746603046807,16.08958845,146.49,146.48,28.5]
[1746603047909,16.08958845,146.49,146.46,6.8287]
[1746603048110,11.37534487,146.49,146.48,28.5]
[1746603048312,16.10071116,146.49,146.48,28.5]
[1746603049310,16.10071116,146.49,146.46,6.8284]
[1746603049612,9.27331116,146.48,146.47,28.5]
[1746603050312,16.10111116,146.48,146.47,28.5]
[1746603050612,9.27331116,146.48,146.47,28.5]
[1746603050805,6.8288,146.46,146.45,597.07546016]
[1746603051008,4.54794487,146.48,146.45,618.24]
[1746603051311,9.26972887,146.47,146.45,618.24]
[1746603051611,4.54794487,146.47,146.45,618.24]
[1746603051811,6.8288,146.46,146.45,618.24]
[1746603052613,11.54953002,146.46,146.45,618.24]
[1746603053013,16.10469111,146.46,146.45,618.24]
[1746603053815,16.10469111,146.46,146.45,589.74]
[1746603054015,16.10469111,146.46,146.45,618.24]
[1746603054217,16.10469111,146.46,146.45,28.5]
[1746603055514,6.8302,146.44,146.41,6.8308]
[1746603055709,6.8302,146.44,146.42,28.5]
[1746603056119,6.8302,146.43,146.42,28.5]
[1746603056319,2.0366,146.51,146.42,28.5]
[1746603056519,6.83,146.44,146.41,6.8308]
[1746603056718,6.83,146.44,146.42,28.5]
[1746603057222,6.83,146.44,146.41,6.8308]
[1746603057419,6.8302,146.43,146.41,6.8308]
[1746603057619,6.8302,146.43,146.42,28.52]
[1746603057818,2.0366,146.51,146.41,6.8308]
[1746603058120,6.8296,146.45,146.42,35.3506]
[1746603058418,9.27399251,146.44,146.42,35.3506]
[1746603058619,6.8296,146.45,146.42,35.3506]
[1746603058821,11.54975856,146.44,146.43,28.52]
[1746603059219,11.54975856,146.44,146.42,6.8306]
[1746603059520,6.8297,146.44,146.42,6.8306]
[1746603059822,6.8297,146.44,146.43,28.52]
[1746603060019,11.54713068,146.44,146.43,28.52]
[1746603060319,16.10040493,146.44,146.43,28.52]
[1746603060724,11.38297425,146.44,146.43,28.52]
[1746603060920,16.10214444,146.44,146.43,28.52]
[1746603061320,16.10214444,146.44,146.42,6.8306]
[1746603061521,6.8297,146.44,146.42,6.8306]
[1746603061825,6.8297,146.44,146.43,28.52]
[1746603062119,11.54901835,146.44,146.43,28.52]
[1746603062621,16.10349747,146.44,146.42,6.8306]
[1746603062822,11.38417912,146.44,146.43,28.52]
[1746603063023,9.27323196,146.44,146.43,35.3502]
[1746603063922,9.27334658,146.44,146.43,35.3502]
[1746603065229,9.27334658,146.44,146.43,28.52]
[1746603065723,9.27478317,146.44,146.43,28.52]
[1746603066625,16.10448317,146.44,146.43,28.52]
[1746603068029,9.27478317,146.44,146.43,28.52]
[1746603071127,4.72030405,146.44,146.43,28.52]
[1746603071329,9.3087393,146.44,146.43,28.52]
[1746603072531,16.1384393,146.44,146.43,28.52]
[1746603074724,11.39465846,146.44,146.43,28.52]
[1746603074932,16.14538929,146.44,146.43,28.52]
[1746603076531,11.39465846,146.44,146.43,28.52]
[1746603076732,16.14584932,146.44,146.43,28.52]
[1746603085644,16.15823992,146.44,146.43,28.52]
[1746603092262,11.39465846,146.44,146.43,28.52]
[1746603092458,16.16196099,146.44,146.43,28.52]
[1746603092855,11.39465846,146.44,146.43,28.52]
[1746603093260,16.16321129,146.44,146.43,28.52]
[1746603093559,16.16484626,146.44,146.43,28.52]
[1746603094558,16.16487976,146.44,146.43,28.52]
[1746603096158,16.16554614,146.44,146.43,28.52]
[1746603101663,16.16275519,146.44,146.43,28.52]
[1746603102266,9.33305519,146.44,146.43,28.52]
[1746603102866,9.33305519,146.44,146.43,35.3502]
[1746603103366,4.56495846,146.44,146.43,35.3502]
[1746603103559,9.32510725,146.44,146.43,35.3502]
[1746603103761,9.32510725,146.44,146.43,28.52]
[1746603105271,9.32510725,146.44,146.43,35.3502]
[1746603105470,9.32510725,146.44,146.43,28.52]
[1746603105670,16.15480725,146.44,146.43,28.52]
[1746603106573,9.32510725,146.44,146.43,28.52]
[1746603107976,9.32510725,146.44,146.43,35.3502]
[1746603108876,9.31433542,146.44,146.43,35.3502]
[1746603109577,6.8279,146.48,146.43,28.52]
[1746603109776,6.8279,146.48,146.46,4.70127109]
[1746603109964,6.8279,146.48,146.47,28.62]
[1746603111379,2.0366,146.51,146.47,35.4483]
[1746603111674,8.86867109,146.52,146.47,28.62]
[1746603111874,6.827,146.5,146.48,6.8278]
[1746603112474,6.827,146.5,146.47,35.4479]
[1746603113081,6.8275,146.49,146.47,28.62]
[1746603113376,2.196,146.56,146.48,4.70127109]
[1746603113577,6.8264,146.52,146.49,6.8273]
[1746603114078,4.70127109,146.55,146.49,6.8273]
[1746603115282,6.8265,146.51,146.48,11.52887109]
[1746603115483,4.70127109,146.55,146.48,4.70127109]
[1746603115876,6.8267,146.51,146.48,11.52887109]
[1746603116778,6.8274,146.49,146.47,28.62]
[1746603117281,6.8274,146.49,146.47,33.32127109]
[1746603118783,6.8278,146.48,146.47,33.32127109]
[1746603120785,6.8276,146.49,146.47,33.32127109]
[1746603121487,9.13825076,146.48,146.47,33.32127109]
[1746603122286,15.96605076,146.48,146.47,33.32127109]
[1746603122680,11.33206267,146.48,146.47,33.32127109]
[1746603122882,15.96565573,146.48,146.47,33.32127109]
[1746603124890,15.96565573,146.48,146.47,28.62]
[1746603126390,15.96511815,146.48,146.47,28.62]
[1746603128190,15.96515828,146.48,146.47,28.62]
[1746603131793,15.97874292,146.48,146.47,28.62]
[1746603133596,15.97991521,146.48,146.47,28.62]
[1746603138598,11.33206267,146.48,146.47,28.62]
[1746603138897,4.70127109,146.49,146.45,28.62]
[1746603139600,9.16359472,146.48,146.45,28.62]
[1746603139795,4.65134256,146.47,146.45,28.62]
[1746603139996,11.48014256,146.46,146.45,28.62]
[1746603140296,9.16359472,146.46,146.45,33.32127109]
[1746603140798,10.78637109,146.55,146.45,33.32127109]
[1746603140998,10.78637109,146.55,146.49,4.70127109]
[1746603141304,10.78637109,146.55,146.5,28.62]
[1746603141799,6.0851,146.55,146.5,28.62]
[1746603143798,6.8263,146.52,146.5,28.62]
[1746603145699,6.8263,146.52,146.5,35.4469]
[1746603150807,6.8263,146.52,146.5,28.62]
[1746603152601,4.54714529,146.51,146.5,28.62]
[1746603153500,4.54756912,146.51,146.5,28.62]
[1746603154207,6.8263,146.52,146.5,28.62]
[1746603154409,4.54761253,146.51,146.5,28.62]
[1746603156706,4.54761253,146.51,146.5,35.4469]
[1746603158907,6.8253,146.54,146.51,6.8262]
[1746603159109,4.55003363,146.53,146.51,6.8262]
[1746603159312,4.55003363,146.52,146.51,6.8262]
[1746603159813,4.55003363,146.52,146.5,35.4467]
[1746603160012,4.55003363,146.51,146.5,28.62]
[1746603160910,11.37643363,146.51,146.5,28.62]
[1746603161109,11.37570967,146.51,146.5,28.62]
[1746603162714,6.8269,146.5,146.49,4.69676121]
[1746603162906,11.37772722,146.5,146.49,33.29676121]
[1746603164411,4.55082722,146.5,146.49,33.29676121]
[1746603164810,4.55082722,146.5,146.49,40.12416121]
[1746603166512,6.8252,146.54,146.51,6.8261]
[1746603166815,4.5501732,146.53,146.51,11.52286121]
[1746603167012,4.5501732,146.52,146.51,11.52286121]
[1746603175523,6.8252,146.54,146.51,11.52286121]
[1746603175826,4.54597951,146.53,146.51,11.52286121]
[1746603176025,4.54597951,146.52,146.51,11.52286121]
[1746603180829,4.54739035,146.52,146.51,11.52286121]
[1746603181734,4.54739035,146.52,146.51,4.69676121]
[1746603182233,4.54822195,146.52,146.51,4.69676121]
[1746603183130,4.54822195,146.52,146.51,11.52316121]
[1746603183326,6.8265,146.51,146.47,589.72]
[1746603183526,4.54822195,146.5,146.47,589.72]
[1746603183731,4.54822195,146.49,146.48,28.6]
[1746603183926,4.69676121,146.52,146.48,28.6]
[1746603184231,4.55172033,146.51,146.48,28.6]
[1746603184432,4.55172033,146.5,146.48,28.6]
[1746603184631,4.55172033,146.49,146.48,28.6]
[1746603185026,11.37912033,146.49,146.48,28.6]
[1746603191038,4.55172033,146.49,146.48,28.6]
[1746603191426,16.02024121,146.56,146.48,28.6]
[1746603191631,6.8253,146.54,146.51,11.52306121]
[1746603191831,6.8253,146.54,146.52,28.52]
[1746603192035,16.02024121,146.56,146.52,28.52]
[1746603192539,11.32348,146.56,146.52,28.52]
[1746603193041,6.8255,146.53,146.52,28.52]
[1746603201845,11.32348,146.56,146.52,35.346]
[1746603202646,6.8255,146.53,146.52,28.52]
[1746603202847,11.32348,146.56,146.52,28.52]
[1746603203345,6.8252,146.54,146.52,28.52]
[1746603203550,4.45288843,146.53,146.52,35.346]
[1746603205750,4.45026668,146.53,146.52,35.346]
[1746603207548,4.44986658,146.53,146.52,35.346]
[1746603209350,6.8248,146.55,146.52,35.346]
[1746603209646,4.45020438,146.54,146.52,35.346]
[1746603209848,4.45020438,146.53,146.52,35.346]
[1746603210144,4.44985194,146.53,146.52,35.346]